fUST/lending_fUST_20250102
["ID","MTS","AMOUNT","RATE_DAILY","PERIOD"]
[347424210,1735782638991,-500.0,0.00019452,3]
[347424211,1735782639001,-500.0,0.00019452,3]
[347424212,1735782639011,-500.0,0.00019452,3]
[347424213,1735782639020,-500.0,0.00019452,3]
[347424214,1735782639029,-500.0,0.00019452,3]
[347424215,1735782639039,-500.0,0.00019452,3]
[347424216,1735782639048,-500.0,0.00019452,3]
[347424217,1735782639058,-501.94,0.00019452,3]
[347424218,1735782639067,-500.0,0.00019452,2]
[347424219,1735782639076,-457.2862955,0.00019452,3]
[347424220,1735782639085,-825.08,0.00019452,3]
[347424221,1735782639095,-1406.71,0.00019452,3]
[347424222,1735782639104,-500.0,0.00019452,3]
[347424223,1735782639113,-500.0,0.00019452,3]
[347424224,1735782639123,-500.0,0.00019452,3]
[347424225,1735782639134,-576.68,0.00019452,3]
[347424226,1735782639145,-500.0,0.00019452,3]
[347424227,1735782639154,-500.0,0.00019452,3]
[347424228,1735782639164,-500.0,0.00019452,3]
[347424229,1735782639175,-500.0,0.00019452,3]
[347424230,1735782639185,-500.0,0.00019452,3]
[347424231,1735782639195,-500.0,0.00019452,3]
[347424232,1735782639206,-500.25,0.00019452,3]
[347424233,1735782639217,-500.0,0.00019452,3]
[347424234,1735782639226,-541.49,0.00019452,3]
[347424235,1735782639236,-6508.24,0.00019452,3]
[347424236,1735782639247,-500.0,0.00019452,3]
[347424237,1735782639256,-500.0,0.00019452,3]
[347424238,1735782639266,-500.0,0.00019452,3]
[347424239,1735782639275,-500.0,0.00019452,3]
[347424240,1735782639286,-514.61,0.00019452,3]
[347424241,1735782639295,-500.0,0.00019452,3]
[347424242,1735782639304,-500.0,0.00019452,3]
[347424243,1735782639314,-500.0,0.00019725,3]
[347424244,1735782639323,-500.0,0.00019725,3]
[347424245,1735782639332,-480.7075773,0.00019725,3]
[347424246,1735782639342,-1307.3,0.00019725,3]
[347424247,1735782639352,-1307.3,0.00019725,3]
[347424248,1735782639361,-1307.3,0.00019725,3]
[347424249,1735782639371,-1307.3,0.00019725,3]
[347424250,1735782639381,-741.73,0.00019725,3]
[347424251,1735782639391,-479.81540349,0.00019726,3]
[347424252,1735782639400,-500.0,0.00019726,3]
[347424253,1735782639410,-500.0,0.00019726,3]
[347424254,1735782639420,-267.44689637,0.00019726,3]
[347424263,1735782643317,-450.3570032,0.00018979,2]
[347424264,1735782643327,-500.0,0.00019178,2]
[347424265,1735782643337,-500.52053302,0.00019178,2]
[347424266,1735782643348,-500.0,0.00019452,3]
[347424267,1735782643358,-232.55310363,0.00019726,3]
[347424268,1735782643367,-500.0,0.00019726,3]
[347424269,1735782643377,-500.0,0.00019726,3]
[347424270,1735782643386,-500.0,0.00019726,3]
[347424271,1735782643395,-500.0,0.00019726,3]
[347424272,1735782643404,-500.0,0.00019726,3]
[347424273,1735782643413,-1196.25,0.00019726,3]
[347424274,1735782643423,-736.58,0.00019726,3]
[347424275,1735782643432,-500.0,0.00019726,3]
[347424276,1735782643441,-500.0,0.00019726,3]
[347424277,1735782643451,-537.43126605,0.00019726,3]
[347424278,1735782643460,-500.0,0.00019726,3]
[347424279,1735782643470,-500.0,0.00019726,3]
[347424280,1735782643479,-500.0,0.00019726,3]
[347424281,1735782643489,-500.0,0.00019726,3]
[347424282,1735782643499,-500.0,0.00019726,3]
[347424283,1735782643509,-500.0,0.00019726,3]
[347424284,1735782643519,-133.74949548,0.00019726,3]
[347424285,1735782643532,-366.25050452,0.00019726,3]
[347424286,1735782643541,-501.94,0.00019726,3]
[347424287,1735782643551,-500.0,0.00019726,2]
[347424288,1735782643561,-825.08,0.00019726,3]
[347424289,1735782643570,-1406.71,0.00019726,3]
[347424290,1735782643579,-500.0,0.00019726,3]
[347424291,1735782643589,-500.0,0.00019726,3]
[347424292,1735782643598,-500.0,0.00019726,3]
[347424293,1735782643607,-576.68,0.00019726,3]
[347424294,1735782643616,-500.0,0.00019726,3]
[347424295,1735782643626,-500.0,0.00019726,3]
[347424296,1735782643635,-500.0,0.00019726,3]
[347424297,1735782643644,-500.0,0.00019726,3]
[347424298,1735782643653,-500.0,0.00019726,3]
[347424299,1735782643663,-500.0,0.00019726,3]
[347424300,1735782643672,-500.25,0.00019726,3]
[347424301,1735782643681,-500.0,0.00019726,3]
[347424302,1735782643691,-541.49,0.00019726,3]
[347424303,1735782643700,-6508.24,0.00019726,3]
[347424304,1735782643710,-500.0,0.00019726,3]
[347424305,1735782643719,-500.0,0.00019726,3]
[347424306,1735782643728,-500.0,0.00019726,3]
[347424307,1735782643737,-500.0,0.00019726,3]
[347424308,1735782643749,-514.61,0.00019726,3]
[347424309,1735782643759,-500.0,0.00019726,3]
[347424310,1735782643768,-500.0,0.00019726,3]
[347424311,1735782643777,-500.0,0.00019726,3]
[347424312,1735782643787,-420.0,0.00019804,2]
[347424313,1735782643796,-156.42975988,0.000199,2]
[347424314,1735782643806,-1307.3,0.00019998,3]
[347424315,1735782643815,-500.0,0.00019999,3]
[347424316,1735782643824,-500.0,0.00019999,3]
[347424317,1735782643834,-1307.3,0.00019999,3]
[347424318,1735782643844,-1307.3,0.00019999,3]
[347424319,1735782643853,-1307.3,0.00019999,3]
[347424320,1735782643863,-741.73,0.00019999,3]
[347424321,1735782643873,-500.0,0.0002,3]
[347424322,1735782643882,-645.50458848,0.0002,3]
[347424323,1735782643892,-500.0,0.0002,3]
[347424324,1735782643901,-500.0,0.0002,3]
[347424325,1735782643911,-500.0,0.0002,3]
[347424326,1735782643920,-500.0,0.0002,3]
[347424327,1735782643929,-500.0,0.0002,3]
[347424328,1735782643939,-439.20708429,0.0002,3]
[347424329,1735782643948,-1196.25,0.0002,3]
[347424330,1735782643957,-736.58,0.0002,3]
[347424331,1735782643966,-500.0,0.0002,3]
[347424332,1735782643975,-500.0,0.0002,3]
[347424333,1735782643985,-500.0,0.0002,3]
[347424334,1735782643995,-500.0,0.0002,3]
[347424335,1735782644004,-500.0,0.0002,3]
[347424336,1735782644013,-500.0,0.0002,3]
[347424337,1735782644023,-500.0,0.0002,3]
[347424338,1735782644032,-500.0,0.0002,3]
[347424339,1735782644041,-500.0,0.0002,3]
[347424340,1735782644050,-501.94,0.0002,3]
[347424341,1735782644059,-500.0,0.0002,2]
[347424342,1735782644068,-825.08,0.0002,3]
[347424343,1735782644077,-1406.71,0.0002,3]
[347424344,1735782644086,-247.27796256,0.0002,3]
[347424345,1735782644096,-500.0,0.0002,3]
[347424346,1735782644105,-500.0,0.0002,3]
[347424347,1735782644114,-576.68,0.0002,3]
[347424348,1735782644123,-500.0,0.0002,3]
[347424349,1735782644135,-500.0,0.0002,3]
[347424350,1735782644149,-500.0,0.0002,3]
[347424351,1735782644158,-500.0,0.0002,3]
[347424352,1735782644167,-500.0,0.0002,3]
[347424353,1735782644176,-500.0,0.0002,3]
[347424354,1735782644184,-500.25,0.0002,3]
[347424355,1735782644193,-281.29592831,0.0002,3]
[347424356,1735782644202,-541.49,0.0002,3]
[347424357,1735782644212,-6508.24,0.0002,3]
[347424358,1735782644221,-500.0,0.0002,3]
[347424359,1735782644230,-500.0,0.0002,3]
[347424360,1735782644239,-500.0,0.0002,3]
[347424361,1735782644250,-500.0,0.0002,3]
[347424362,1735782644259,-514.61,0.0002,3]
[347424363,1735782644271,-500.0,0.0002,3]
[347424364,1735782644280,-500.0,0.0002,3]
[347424365,1735782644289,-500.0,0.0002,3]
[347424366,1735782644424,-1307.3,0.00020104,3]
[347424367,1735782644434,-184.06359479,0.00020174,2]
[347424368,1735782644443,-504.14841598,0.00020186,2]
[347424369,1735782644452,-153.0,0.00020205,2]
[347424370,1735782644462,-153.0,0.00020205,2]
[347424371,1735782644471,-153.0,0.00020205,2]
[347424372,1735782644480,-153.0,0.00020205,2]
[347424373,1735782644489,-153.0,0.00020205,2]
[347424374,1735782644500,-153.0,0.00020205,2]
[347424375,1735782644509,-153.0,0.00020205,2]
[347424376,1735782644518,-153.0,0.00020205,2]
[347424377,1735782644528,-153.0,0.00020205,2]
[347424378,1735782644537,-153.0,0.00020205,2]
[347424379,1735782644548,-153.0,0.00020205,2]
[347424380,1735782644558,-153.0,0.00020205,2]
[347424381,1735782644568,-153.0,0.00020205,2]
[347424382,1735782644577,-153.0,0.00020205,2]
[347424383,1735782644587,-153.0,0.00020205,2]
[347424384,1735782644595,-153.0,0.00020205,2]
[347424385,1735782644605,-153.0,0.00020205,2]
[347424386,1735782644614,-153.0,0.00020205,2]
[347424387,1735782644624,-153.0,0.00020205,2]
[347424388,1735782644633,-151.306,0.00020226,2]
[347424389,1735782644643,-2191.491,0.00020226,2]
[347424390,1735782644652,-540.501,0.00020226,2]
[347424391,1735782644661,-2355.65,0.00020226,2]
[347424392,1735782644670,-394.0,0.00020226,2]
[347424393,1735782644679,-156.42975988,0.00020264,2]
[347424394,1735782644689,-1307.3,0.00020272,3]
[347424395,1735782644698,-1307.3,0.00020272,3]
[347424396,1735782644707,-1307.3,0.00020272,3]
[347424397,1735782644716,-1307.3,0.00020272,3]
[347424398,1735782644726,-1307.49953314,0.00020272,3]
[347424399,1735782644735,-151.0,0.00020273,2]
[347424400,1735782644744,-500.0,0.00020273,3]
[347424401,1735782644755,-295.19613914,0.00020273,3]
[347424402,1735782644766,-500.0,0.00020273,3]
[347424403,1735782644775,-272.02429929,0.00020273,3]
[347424404,1735782644784,-500.0,0.00020273,3]
[347424405,1735782644794,-500.0,0.00020273,3]
[347424406,1735782644803,-500.0,0.00020273,3]
[347424407,1735782644812,-349.61397185,0.00020273,3]
[347424408,1735782644821,-1196.25,0.00020273,3]
[347424409,1735782644830,-736.58,0.00020273,3]
[347424410,1735782644839,-616.05988874,0.00020273,3]
[347424411,1735782644848,-500.0,0.00020273,3]
[347424412,1735782644857,-500.0,0.00020273,3]
[347424413,1735782644866,-162.70984437,0.00020273,3]
[347424414,1735782644875,-500.0,0.00020273,3]
[347424415,1735782644884,-500.0,0.00020273,3]
[347424416,1735782644893,-500.0,0.00020273,3]
[347424417,1735782644902,-500.0,0.00020273,3]
[347424418,1735782644911,-500.0,0.00020273,3]
[347424419,1735782644921,-501.94,0.00020273,3]
[347424420,1735782644930,-500.0,0.00020273,2]
[347424421,1735782644939,-825.08,0.00020273,3]
[347424422,1735782644948,-499.0,0.00020273,2]
[347424423,1735782644957,-1406.71,0.00020273,3]
[347424424,1735782644966,-500.0,0.00020273,3]
[347424425,1735782644975,-500.0,0.00020273,3]
[347424426,1735782644985,-576.68,0.00020273,3]
[347424427,1735782644995,-500.0,0.00020273,3]
[347424428,1735782645005,-500.0,0.00020273,3]
[347424429,1735782645014,-500.0,0.00020273,3]
[347424430,1735782645023,-500.0,0.00020273,3]
[347424431,1735782645032,-500.0,0.00020273,3]
[347424432,1735782645042,-741.73,0.00020273,3]
[347424433,1735782645051,-500.0,0.00020273,3]
[347424434,1735782645061,-500.25,0.00020273,3]
[347424435,1735782645070,-541.49,0.00020273,3]
[347424436,1735782645079,-6508.24,0.00020273,3]
[347424437,1735782645088,-500.0,0.00020273,3]
[347424438,1735782645098,-500.0,0.00020273,3]
[347424439,1735782645107,-500.0,0.00020273,3]
[347424440,1735782645116,-500.0,0.00020273,3]
[347424441,1735782645125,-514.61,0.00020273,3]
[347424442,1735782645138,-500.0,0.00020273,3]
[347424443,1735782645148,-500.0,0.00020273,3]
[347424444,1735782645157,-165.44655665,0.00020378,2]
[347424445,1735782645166,-208.280125,0.00020447,2]
[347424446,1735782645176,-168.616568,0.00020521,2]
[347424447,1735782645186,-151.0,0.00020547,2]
[347424448,1735782645196,-500.0,0.00020547,3]
[347424449,1735782645206,-500.0,0.00020547,3]
[347424450,1735782645216,-500.0,0.00020547,3]
[347424451,1735782645225,-500.0,0.00020547,3]
[347424452,1735782645234,-500.0,0.00020547,3]
[347424453,1735782645243,-1196.25,0.00020547,3]
[347424454,1735782645253,-736.58,0.00020547,3]
[347424455,1735782645263,-580.72668564,0.00020547,3]
[347424456,1735782645272,-500.0,0.00020547,3]
[347424457,1735782645281,-500.0,0.00020547,3]
[347424458,1735782645290,-500.0,0.00020547,3]
[347424459,1735782645299,-500.0,0.00020547,3]
[347424460,1735782645308,-500.0,0.00020547,3]
[347424461,1735782645320,-500.0,0.00020547,3]
[347424462,1735782645328,-501.94,0.00020547,3]
[347424463,1735782645338,-500.0,0.00020547,2]
[347424464,1735782645347,-825.08,0.00020547,3]
[347424465,1735782645356,-1406.71,0.00020547,3]
[347424466,1735782645365,-500.0,0.00020547,3]
[347424467,1735782645374,-500.0,0.00020547,3]
[347424468,1735782645383,-576.68,0.00020547,3]
[347424469,1735782645393,-500.0,0.00020547,3]
[347424470,1735782645401,-198.8592514,0.00020547,3]
[347424471,1735782645413,-500.0,0.00020547,3]
[347424472,1735782645422,-500.0,0.00020547,3]
[347424473,1735782645432,-500.0,0.00020547,3]
[347424474,1735782645441,-741.73,0.00020547,3]
[347424475,1735782645450,-500.0,0.00020547,3]
[347424476,1735782645460,-500.25,0.00020547,3]
[347424477,1735782645469,-541.49,0.00020547,3]
[347424478,1735782645479,-6508.24,0.00020547,3]
[347424479,1735782645488,-500.0,0.00020547,3]
[347424480,1735782645499,-500.0,0.00020547,3]
[347424481,1735782645508,-500.0,0.00020547,3]
[347424482,1735782645518,-500.0,0.00020547,3]
[347424483,1735782645527,-514.61,0.00020547,3]
[347424484,1735782645537,-500.0,0.00020547,3]
[347424485,1735782645546,-500.0,0.00020547,3]
[347424486,1735782645555,-156.42975988,0.00020627,2]
[347424487,1735782645565,-151.0,0.00020821,2]
[347424488,1735782645575,-500.0,0.00020821,3]
[347424489,1735782645584,-500.0,0.00020821,3]
[347424490,1735782645593,-500.0,0.00020821,3]
[347424491,1735782645602,-500.0,0.00020821,3]
[347424492,1735782645612,-500.0,0.00020821,3]
[347424493,1735782645622,-1196.25,0.00020821,3]
[347424494,1735782645631,-736.58,0.00020821,3]
[347424495,1735782645640,-500.0,0.00020821,3]
[347424496,1735782645650,-500.0,0.00020821,3]
[347424497,1735782645659,-500.0,0.00020821,3]
[347424498,1735782645668,-163.84838723,0.00020821,3]
[347424499,1735782645678,-500.0,0.00020821,3]
[347424500,1735782645687,-500.0,0.00020821,3]
[347424501,1735782645696,-501.94,0.00020821,3]
[347424502,1735782645705,-500.0,0.00020821,2]
[347424503,1735782645715,-825.08,0.00020821,3]
[347424504,1735782645724,-1406.71,0.00020821,3]
[347424505,1735782645733,-500.0,0.00020821,3]
[347424506,1735782645742,-486.55032266,0.00020821,3]
[347424507,1735782645751,-576.68,0.00020821,3]
[347424508,1735782645760,-500.0,0.00020821,3]
[347424509,1735782645770,-500.0,0.00020821,3]
[347424510,1735782645779,-500.0,0.00020821,3]
[347424511,1735782645788,-500.0,0.00020821,3]
[347424512,1735782645797,-741.73,0.00020821,3]
[347424513,1735782645806,-624.63700767,0.00020821,3]
[347424514,1735782645815,-500.25,0.00020821,3]
[347424515,1735782645824,-541.49,0.00020821,3]
[347424516,1735782645833,-6508.24,0.00020821,3]
[347424517,1735782645842,-500.0,0.00020821,3]
[347424518,1735782645851,-500.0,0.00020821,3]
[347424519,1735782645861,-500.0,0.00020821,3]
[347424520,1735782645870,-500.0,0.00020821,3]
[347424521,1735782645879,-514.61,0.00020821,3]
[347424522,1735782645888,-500.0,0.00020821,3]
[347424523,1735782645897,-500.0,0.00020821,3]
[347424524,1735782645907,-156.42975988,0.00020991,2]
[347424525,1735782645916,-184.06359479,0.00020996,2]
[347424526,1735782645925,-2000.0,0.00021,2]
[347424527,1735782645934,-2000.0,0.00021,2]
[347424528,1735782645943,-2000.0,0.00021,3]
[347424529,1735782645953,-153.306263,0.00021095,2]
[347424530,1735782645963,-500.0,0.00021095,3]
[347424531,1735782645972,-500.0,0.00021095,3]
[347424532,1735782645981,-500.0,0.00021095,3]
[347424533,1735782645991,-500.0,0.00021095,3]
[347424535,1735782646001,-500.0,0.00021095,3]
[347424537,1735782646010,-1196.25,0.00021095,3]
[347424539,1735782646019,-736.58,0.00021095,3]
[347424540,1735782646028,-500.0,0.00021095,3]
[347424541,1735782646037,-4393.91111643,0.00021095,14]
[347424542,1735782646046,-500.0,0.00021095,3]
[347424543,1735782646055,-216.97549478,0.00021095,3]
[347424544,1735782646064,-367.4075872,0.00021095,3]
[347424545,1735782646073,-500.0,0.00021095,3]
[347424546,1735782646082,-501.94,0.00021095,3]
[347424547,1735782646092,-500.0,0.00021095,2]
[347424548,1735782646101,-825.08,0.00021095,3]
[347424549,1735782646110,-1406.71,0.00021095,3]
[347424550,1735782646119,-500.0,0.00021095,3]
[347424552,1735782646129,-576.68,0.00021095,3]
[347424554,1735782646141,-500.0,0.00021095,3]
[347424555,1735782646150,-500.0,0.00021095,3]
[347424556,1735782646159,-500.0,0.00021095,3]
[347424557,1735782646167,-500.0,0.00021095,3]
[347424558,1735782646176,-741.73,0.00021095,3]
[347424559,1735782646185,-500.25,0.00021095,3]
[347424560,1735782646195,-541.49,0.00021095,3]
[347424561,1735782646205,-6508.24,0.00021095,3]
[347424562,1735782646216,-500.0,0.00021095,3]
[347424563,1735782646225,-500.0,0.00021095,3]
[347424564,1735782646234,-500.0,0.00021095,3]
[347424565,1735782646243,-500.0,0.00021095,3]
[347424566,1735782646251,-514.61,0.00021095,3]
[347424567,1735782646260,-500.0,0.00021095,3]
[347424568,1735782646269,-500.0,0.00021095,3]
[347424569,1735782646279,-10317.53524647,0.00021114,2]
[347424570,1735782646287,-156.42975988,0.00021355,2]
[347424571,1735782646296,-500.0,0.00021368,2]
[347424572,1735782646305,-586.02754379,0.00021368,2]
[347424573,1735782646314,-500.0,0.00021369,2]
[347424574,1735782646325,-500.0,0.00021369,3]
[347424575,1735782646334,-500.0,0.00021369,3]
[347424576,1735782646343,-500.0,0.00021369,3]
[347424577,1735782646352,-500.0,0.00021369,3]
[347424578,1735782646361,-500.0,0.00021369,3]
[347424579,1735782646370,-1196.25,0.00021369,3]
[347424580,1735782646379,-736.58,0.00021369,3]
[347424581,1735782646388,-500.0,0.00021369,3]
[347424582,1735782646398,-500.0,0.00021369,3]
[347424583,1735782646407,-500.0,0.00021369,3]
[347424584,1735782646416,-501.94,0.00021369,3]
[347424585,1735782646425,-500.0,0.00021369,2]
[347424586,1735782646435,-825.08,0.00021369,3]
[347424587,1735782646443,-1406.71,0.00021369,3]
[347424588,1735782646452,-500.0,0.00021369,3]
[347424589,1735782646462,-576.68,0.00021369,3]
[347424590,1735782646471,-500.0,0.00021369,3]
[347424591,1735782646480,-500.0,0.00021369,3]
[347424592,1735782646489,-500.0,0.00021369,3]
[347424593,1735782646500,-500.0,0.00021369,3]
[347424594,1735782646510,-741.73,0.00021369,3]
[347424595,1735782646519,-500.25,0.00021369,3]
[347424596,1735782646528,-541.49,0.00021369,3]
[347424597,1735782646537,-6508.24,0.00021369,3]
[347424598,1735782646546,-500.0,0.00021369,3]
[347424599,1735782646556,-500.0,0.00021369,3]
[347424600,1735782646565,-500.0,0.00021369,3]
[347424601,1735782646574,-500.0,0.00021369,3]
[347424602,1735782646583,-514.61,0.00021369,3]
[347424603,1735782646592,-500.0,0.00021369,3]
[347424604,1735782646603,-500.0,0.00021369,3]
[347424605,1735782646612,-2000.0,0.000215,4]
[347424606,1735782646621,-619.0,0.000215,2]
[347424607,1735782646631,-587.0,0.00021605,2]
[347424608,1735782646640,-500.0,0.00021643,3]
[347424609,1735782646649,-500.0,0.00021643,3]
[347424610,1735782646659,-627.94026794,0.00021643,3]
[347424611,1735782646669,-489.55899857,0.00021643,3]
[347424612,1735782646678,-500.0,0.00021643,3]
[347424613,1735782646687,-1196.25,0.00021643,3]
[347424614,1735782646698,-736.58,0.00021643,3]
[347424615,1735782646707,-589.50843404,0.00021643,3]
[347424616,1735782646717,-500.0,0.00021643,3]
[347424617,1735782646728,-500.0,0.00021643,3]
[347424618,1735782646737,-501.94,0.00021643,3]
[347424619,1735782646749,-500.0,0.00021643,2]
[347424620,1735782646759,-825.08,0.00021643,3]
[347424621,1735782646769,-499.0,0.00021643,4]
[347424622,1735782646778,-500.0,0.00021643,3]
[347424623,1735782646787,-1406.71,0.00021643,3]
[347424624,1735782646796,-576.68,0.00021643,3]
[347424625,1735782646805,-500.0,0.00021643,3]
[347424626,1735782646815,-500.0,0.00021643,3]
[347424627,1735782646825,-500.0,0.00021643,3]
[347424628,1735782646834,-500.0,0.00021643,3]
[347424629,1735782646843,-741.73,0.00021643,3]
[347424630,1735782646853,-500.25,0.00021643,3]
[347424631,1735782646863,-541.49,0.00021643,3]
[347424632,1735782646872,-6508.24,0.00021643,3]
[347424633,1735782646881,-500.0,0.00021643,3]
[347424634,1735782646890,-500.0,0.00021643,3]
[347424635,1735782646906,-500.0,0.00021643,3]
[347424636,1735782646919,-500.0,0.00021643,3]
[347424637,1735782646929,-514.61,0.00021643,3]
[347424638,1735782646938,-500.0,0.00021643,3]
[347424639,1735782646948,-500.0,0.00021643,3]
[347424640,1735782646958,-156.42975988,0.00021718,2]
[347424641,1735782646968,-165.44655665,0.00021755,2]
[347424642,1735782646978,-184.06359479,0.00021817,2]
[347424643,1735782646987,-500.0,0.00021917,3]
[347424644,1735782646998,-498.6274202,0.00021917,3]
[347424645,1735782647007,-500.0,0.00021917,3]
[347424646,1735782647017,-1196.25,0.00021917,3]
[347424647,1735782647027,-736.58,0.00021917,3]
[347424648,1735782647037,-500.0,0.00021917,3]
[347424649,1735782647048,-500.0,0.00021917,3]
[347424650,1735782647058,-501.94,0.00021917,3]
[347424651,1735782647068,-500.0,0.00021917,2]
[347424652,1735782647077,-825.08,0.00021917,3]
[347424653,1735782647086,-500.0,0.00021917,3]
[347424654,1735782647096,-1406.71,0.00021917,3]
[347424655,1735782647105,-576.68,0.00021917,3]
[347424656,1735782647117,-263.22603626,0.00021917,3]
[347424657,1735782647129,-500.0,0.00021917,3]
[347424658,1735782647144,-551.02466466,0.00021917,3]
[347424659,1735782647154,-500.0,0.00021917,3]
[347424660,1735782647164,-741.73,0.00021917,3]
[347424661,1735782647174,-500.25,0.00021917,3]
[347424662,1735782647184,-541.49,0.00021917,3]
[347424663,1735782647194,-6508.24,0.00021917,3]
[347424664,1735782647204,-500.0,0.00021917,3]
[347424665,1735782647215,-500.0,0.00021917,3]
[347424666,1735782647224,-500.0,0.00021917,3]
[347424667,1735782647233,-500.0,0.00021917,3]
[347424668,1735782647243,-514.61,0.00021917,3]
[347424669,1735782647252,-500.0,0.00021917,3]
[347424670,1735782647261,-500.0,0.00021917,3]
[347424671,1735782647270,-554.798,0.0002197,2]
[347424672,1735782647280,-2000.0,0.00022,5]
[347424673,1735782647289,-1210.2,0.00022,2]
[347424674,1735782647299,-2000.0,0.00022,2]
[347424675,1735782647308,-150.0,0.00022,2]
[347424676,1735782647317,-168.616568,0.00022055,2]
[347424677,1735782647327,-156.42975988,0.00022082,2]
[347424678,1735782647337,-500.0,0.00022191,3]
[347424679,1735782647346,-500.0,0.00022191,3]
[347424680,1735782647356,-1196.25,0.00022191,3]
[347424681,1735782647366,-736.58,0.00022191,3]
[347424682,1735782647376,-500.0,0.00022191,3]
[347424683,1735782647387,-500.0,0.00022191,3]
[347424684,1735782647397,-501.94,0.00022191,3]
[347424685,1735782647406,-500.0,0.00022191,2]
[347424686,1735782647416,-825.08,0.00022191,3]
[347424687,1735782647425,-500.0,0.00022191,3]
[347424688,1735782647590,-1406.71,0.00022191,3]
[347424689,1735782647600,-576.68,0.00022191,3]
[347424690,1735782647609,-500.0,0.00022191,3]
[347424691,1735782647618,-500.0,0.00022191,3]
[347424692,1735782647628,-741.73,0.00022191,3]
[347424693,1735782647637,-500.25,0.00022191,3]
[347424694,1735782647646,-541.49,0.00022191,3]
[347424695,1735782647659,-6508.24,0.00022191,3]
[347424696,1735782647668,-500.0,0.00022191,3]
[347424697,1735782647678,-500.0,0.00022191,3]
[347424698,1735782647687,-500.0,0.00022191,3]
[347424699,1735782647698,-371.45451697,0.00022191,3]
[347424700,1735782647707,-514.61,0.00022191,3]
[347424701,1735782647717,-500.0,0.00022191,3]
[347424702,1735782647726,-245.56129736,0.00022191,3]
[347424703,1735782647735,-156.42975988,0.00022445,2]
[347424704,1735782647745,-500.0,0.00022465,3]
[347424705,1735782647754,-200.53827799,0.00022465,3]
[347424706,1735782647763,-1196.25,0.00022465,3]
[347424707,1735782647771,-736.58,0.00022465,3]
[347424708,1735782647780,-168.43531394,0.00022465,3]
[347424709,1735782647789,-500.0,0.00022465,3]
[347424710,1735782647799,-501.94,0.00022465,3]
[347424711,1735782647808,-500.0,0.00022465,2]
[347424712,1735782647817,-825.08,0.00022465,3]
[347424713,1735782647826,-500.0,0.00022465,3]
[347424714,1735782647835,-1406.71,0.00022465,3]
[347424715,1735782647845,-576.68,0.00022465,3]
[347424716,1735782647855,-500.0,0.00022465,3]
[347424717,1735782647866,-500.0,0.00022465,3]
[347424718,1735782647875,-741.73,0.00022465,3]
[347424719,1735782647885,-500.25,0.00022465,3]
[347424720,1735782647894,-541.49,0.00022465,3]
[347424721,1735782647903,-6508.24,0.00022465,3]
[347424722,1735782647912,-500.0,0.00022465,3]